[Event "CCT Julius Baer-D2 2024"]
[Site "Online"]
[Date "2024.09.29"]
[Round "53"]
[White "Daneshvar, Bardiya"]
[Black "Indjic, Aleksandar"]
[Result "1-0"]
[ECO "A06"]
[WhiteElo "2598"]
[BlackElo "2611"]
[Annotator "ChessBase"]
[PlyCount "93"]
[EventDate "2024.09.25"]
[EventType "swiss"]
[EventCountry "NET"]
[SourceTitle "playchess.com"]
[Source "ChessBase"]
[SourceQuality "1"]
[TimeControl "600+2"]

1. Nf3 {[%emt 0:00:03]} d5 {[%emt 0:00:04]} 2. e3 {[%emt 0:00:01]} Nf6 {[%emt 0:00:04]} 3. b3 {[%emt 0:00:01]} Bf5 {[%emt 0:00:03]} 4. Be2 {[%emt 0:00:02]} h6 {[%emt 0:00:01]} 5. Ba3 {[%emt 0:00:01]} c6 {[%emt 0:00:06]} 6. O-O {[%emt 0:00:01]} Nbd7 {[%emt 0:00:01]} 7. c4 {[%emt 0:00:01]} Qa5 {[%emt 0:00:07]} 8. Qc1 {[%emt 0:00:09]} e5 {[%emt 0:00:22]} 9. Bxf8 {[%emt 0:00:02]} Kxf8 {[%emt 0:00:00]} 10. Qb2 {[%emt 0:00:06]} Re8 {[%emt 0:00:02]} 11. b4 {[%emt 0:00:06]} Qb6 {[%emt 0:00:11]} 12. Nc3 {[%emt 0:00:09]} Bg4 {[%emt 0:00:02]} 13. cxd5 {[%emt 0:00:14]} cxd5 {[%emt 0:00:01]} 14. Rfc1 {[%emt 0:00:08]} a6 {[%emt 0:00:11]} 15. Na4 {[%emt 0:00:12]} Qd6 {[%emt 0:00:03]} 16. Nc5 {[%emt 0:00:02]} Bxf3 {[%emt 0:00:02]} 17. Bxf3 {[%emt 0:00:05]} Rb8 {[%emt 0:00:02]} 18. Rc2 {[%emt 0:01:04]} Ke7 {[%emt 0:00:09]} 19. Rac1 {[%emt 0:00:05]} Rhc8 {[%emt 0:00:18]} 20. d4 {[%emt 0:00:01]} e4 {[%emt 0:00:03]} 21. Be2 {[%emt 0:00:02]} Rc7 {[%emt 0:00:43]} 22. a4 {[%emt 0:00:05]} Rcc8 {[%emt 0:00:23]} 23. a5 {[%emt 0:00:05]} h5 {[%emt 0:00:17]} 24. h3 {[%emt 0:00:21]} g5 {[%emt 0:00:14]} 25. b5 {[%emt 0:00:29]} axb5 {[%emt 0:00:08]} 26. Bxb5 {[%emt 0:01:06]} Nxc5 {[%emt 0:00:03]} 27. dxc5 {[%emt 0:00:14]} Qe6 {[%emt 0:00:01]} 28. Qb4 {[%emt 0:00:56]} g4 {[%emt 0:00:42]} 29. hxg4 {[%emt 0:00:03]} Nxg4 {[%emt 0:00:02]} 30. Be2 {[%emt 0:00:29]} Rc6 {[%emt 0:00:14]} 31. a6 {[%emt 0:00:20]} Qe5 {[%emt 0:00:45]} 32. Bxg4 {[%emt 0:00:09]} hxg4 {[%emt 0:00:06]} 33. a7 {[%emt 0:00:11]} Rh8 {[%emt 0:00:35]} 34. Qxb7+ {[%emt 0:00:04]} Rc7 {[%emt 0:00:17]} 35. a8=Q {[%emt 0:00:02]} Qh2+ {[%emt 0:00:01]} 36. Kf1 {[%emt 0:00:01]} Rxa8 {[%emt 0:00:02]} 37. Qxa8 {[%emt 0:00:02]} Qh1+ {[%emt 0:00:01]} 38. Ke2 {[%emt 0:00:01]} Qxg2 {[%emt 0:00:00]} 39. Qb8 {[%emt 0:00:17]} Qf3+ {[%emt 0:00:19]} 40. Ke1 {[%emt 0:00:02]} Qh1+ {[%emt 0:00:00]} 41. Kd2 {[%emt 0:00:10]} Qh2 {[%emt 0:00:02]} 42. Rf1 {[%emt 0:00:06]} d4 {[%emt 0:00:00]} 43. Ke1 {[%emt 0:00:16]} d3 {[%emt 0:00:36]} 44. Rc4 {[%emt 0:00:04]} f5 {[%emt 0:00:07]} 45. Rd4 {[%emt 0:00:08]} Qe5 {[%emt 0:00:09]} 46. Rh1 {[%emt 0:00:11]} Qxc5 {[%emt 0:00:14]} 47. Qxc7+ {[%emt 0:00:03]} 1-0

[Event "CCT Julius Baer-D2 2024"]
[Site "Online"]
[Date "2024.09.29"]
[Round "53"]
[White "Daneshvar, Bardiya"]
[Black "Indjic, Aleksandar"]
[Result "0-1"]
[ECO "A25"]
[WhiteElo "2598"]
[BlackElo "2611"]
[Annotator "RC"]
[PlyCount "80"]
[EventDate "2024.09.25"]
[EventType "swiss"]
[EventCountry "NET"]
[SourceTitle "playchess.com"]
[Source "ChessBase"]
[SourceQuality "1"]
[TimeControl "600+2"]

1. c4 {[%emt 0:00:04]} e5 {[%emt 0:03:05]} 2. g3 {[%emt 0:00:05]} Nc6 {[%emt 0:00:03]} 3. Bg2 {[%emt 0:00:03]} Bc5 {[%emt 0:00:03]} 4. Nc3 {[%emt 0:00:03]} a6 {[%emt 0:00:02]} 5. e3 {[%emt 0:00:04]} Ba7 {[%emt 0:00:03]} 6. Nge2 {[%emt 0:00:03]} d6 {[%emt 0:00:03]} 7. d4 {[%emt 0:00:08]} Bd7 {[%emt 0:00:03]} 8. a3 {[%emt 0:00:07]} h5 {[%emt 0:00:03]} 9. h3 {[%emt 0:00:03]} Nf6 {[%emt 0:00:03]} 10. b4 {[%emt 0:00:05]} Qc8 {[%emt 0:00:03]} 11. Bb2 {[%emt 0:00:15]} Ne7 {[%emt 0:00:03]} 12. c5 {[%emt 0:00:12]} exd4 {[%emt 0:00:09]} 13. exd4 {[%emt 0:00:03]} Ng6 {[%emt 0:00:05]} 14. Qd3 {[%emt 0:00:25]} O-O {[%emt 0:00:10]} 15. O-O-O {[%emt 0:00:12]} Re8 {[%emt 0:00:08]} 16. Rde1 {[%emt 0:00:13]} a5 {[%emt 0:00:07]} 17. Nf4 {[%emt 0:00:06]} Nxf4 {[%emt 0:00:04]} 18. gxf4 {[%emt 0:00:02]} axb4 {[%emt 0:00:04]} 19. axb4 {[%emt 0:00:03]} Rxe1+ {[%emt 0:00:38]} 20. Rxe1 {[%emt 0:00:04]} Bf5 {[%emt 0:00:02]} 21. Qg3 {[%emt 0:00:19]} Qd8 {[%emt 0:00:25]} 22. Nd5 {[%emt 0:00:35]} Nxd5 {[%emt 0:00:07]} 23. Bxd5 {[%emt 0:00:02]} c6 {[%emt 0:00:03]} 24. Bb3 {[%emt 0:00:38]} d5 {[%emt 0:00:04]} 25. Bc3 {[%emt 0:00:34]} Bb8 {[%emt 0:00:05]} 26. Kb2 {[%emt 0:00:10]} Bc7 {[%emt 0:00:03]} 27. h4 {[%emt 0:00:11]} g6 {[%emt 0:00:07]} 28. Bd2 {[%emt 0:00:18]} Qd7 {[%emt 0:00:04]} 29. Be3 {[%emt 0:00:08]} b5 {[%emt 0:00:04]} 30. Bd1 {[%emt 0:00:08]} Kh7 {[%emt 0:00:12]} 31. Rg1 {[%emt 0:00:05]} Bd8 {[%emt 0:00:02]} 32. Bb3 {[%emt 0:00:26]} Qa7 {[%emt 0:00:12]} 33. Kc3 {[%emt 0:00:05]} Bf6 {[%emt 0:00:03]} 34. Rd1 {[%emt 0:00:15]} Qa3 {[%emt 0:00:04]} 35. Bc1 {[%emt 0:00:08]} Qa1+ {[%emt 0:00:05]} 36. Bb2 {[%emt 0:00:08]} Bxd4+ {[%emt 0:00:13]} 37. Rxd4 {[%emt 0:00:04]} Qe1+ {[%emt 0:00:04]} 38. Rd2 {[%emt 0:00:02]} d4+ {[%emt 0:00:03]} 39. Kxd4 {[%emt 0:00:04]} Qxd2+ {[%emt 0:00:03]} 40. Ke5 {[%emt 0:00:03]} Qxb2+ {[%emt 0:00:03]} 0-1

[Event "CCT Julius Baer-D2 2024"]
[Site "Online"]
[Date "2024.09.29"]
[Round "53"]
[White "Lazavik, Denis"]
[Black "Bortnyk, Olexandr"]
[Result "1/2-1/2"]
[ECO "A50"]
[WhiteElo "2578"]
[BlackElo "2608"]
[Annotator "RC"]
[PlyCount "111"]
[EventDate "2024.09.25"]
[EventType "swiss"]
[EventCountry "NET"]
[SourceTitle "playchess.com"]
[Source "ChessBase"]
[SourceQuality "1"]
[TimeControl "600+2"]

1. d4 {[%emt 0:00:03]} Nf6 {[%emt 0:00:05]} 2. c4 {[%emt 0:00:01]} b6 {[%emt 0:00:01]} 3. Nc3 {[%emt 0:00:02]} Bb7 {[%emt 0:00:02]} 4. Qc2 {[%emt 0:00:01]} d6 {[%emt 0:00:02]} 5. e4 {[%emt 0:00:05]} e5 {[%emt 0:00:08]} 6. Nf3 {[%emt 0:00:07]} Nc6 {[%emt 0:00:55]} 7. d5 {[%emt 0:00:06]} Ne7 {[%emt 0:00:01]} 8. h4 {[%emt 0:00:44]} h5 {[%emt 0:00:17]} 9. Bg5 {[%emt 0:00:11]} Nd7 {[%emt 0:00:02]} 10. O-O-O {[%emt 0:00:28]} a5 {[%emt 0:00:10]} 11. Be3 {[%emt 0:00:15]} f6 {[%emt 0:00:36]} 12. g3 {[%emt 0:00:08]} g6 {[%emt 0:00:07]} 13. Bh3 {[%emt 0:00:14]} Bh6 {[%emt 0:00:04]} 14. Bxh6 {[%emt 0:00:07]} Rxh6 {[%emt 0:00:00]} 15. Ne1 {[%emt 0:00:01]} Ba6 {[%emt 0:00:08]} 16. b3 {[%emt 0:00:17]} a4 {[%emt 0:00:06]} 17. Nxa4 {[%emt 0:00:11]} b5 {[%emt 0:00:01]} 18. cxb5 {[%emt 0:00:02]} Bxb5 {[%emt 0:00:00]} 19. Nc3 {[%emt 0:00:00]} Qb8 {[%emt 0:00:04]} 20. Nd3 {[%emt 0:00:31]} Rh8 {[%emt 0:00:23]} 21. Kb1 {[%emt 0:00:16]} Bxd3 {[%emt 0:00:24]} 22. Bxd7+ {[%emt 0:00:02]} Kxd7 {[%emt 0:00:00]} 23. Rxd3 {[%emt 0:00:01]} Qb4 {[%emt 0:00:06]} 24. Rc1 {[%emt 0:01:03]} Rhb8 {[%emt 0:00:03]} 25. Qd2 {[%emt 0:00:25]} f5 {[%emt 0:00:38]} 26. f3 {[%emt 0:00:03]} Ra3 {[%emt 0:00:58]} 27. Rc2 {[%emt 0:00:12]} Qa5 {[%emt 0:00:11]} 28. Ne2 {[%emt 0:00:37]} Qa7 {[%emt 0:00:02]} 29. Nc1 {[%emt 0:00:12]} Qg1 {[%emt 0:00:10]} 30. Qf2 {[%emt 0:00:18]} Qh1 {[%emt 0:00:09]} 31. Qg2 {[%emt 0:01:08]} Qe1 {[%emt 0:00:35]} 32. Rdc3 {[%emt 0:00:03]} Rb7 {[%emt 0:00:24]} 33. Qf2 {[%emt 0:00:03]} Qxf2 {[%emt 0:00:12]} 34. Rxf2 {[%emt 0:00:01]} c5 {[%emt 0:00:00]} 35. dxc6+ {[%emt 0:00:07]} Nxc6 {[%emt 0:00:01]} 36. Rd2 {[%emt 0:00:04]} Nd4 {[%emt 0:00:54]} 37. Ne2 {[%emt 0:00:05]} Nb5 {[%emt 0:00:01]} 38. Rcd3 {[%emt 0:00:07]} fxe4 {[%emt 0:00:20]} 39. fxe4 {[%emt 0:00:01]} Ra4 {[%emt 0:00:00]} 40. Kb2 {[%emt 0:00:38]} Ra6 {[%emt 0:00:54]} 41. Nc3 {[%emt 0:00:08]} Na3 {[%emt 0:00:12]} 42. Rf2 {[%emt 0:00:08]} Ke8 {[%emt 0:00:11]} 43. Rdf3 {[%emt 0:00:05]} Nc4+ {[%emt 0:00:20]} 44. Kc1 {[%emt 0:00:02]} Nb6 {[%emt 0:00:06]} 45. Rf8+ {[%emt 0:00:06]} Kd7 {[%emt 0:00:02]} 46. R2f7+ {[%emt 0:00:09]} Kc6 {[%emt 0:00:00]} 47. Rxb7 {[%emt 0:00:01]} Kxb7 {[%emt 0:00:01]} 48. Rf6 {[%emt 0:00:01]} Nd7 {[%emt 0:00:02]} 49. Rxg6 {[%emt 0:00:01]} Rc6 {[%emt 0:00:00]} 50. Kd2 {[%emt 0:00:03]} Nc5 {[%emt 0:00:02]} 51. b4 {[%emt 0:00:04]} Nd7 {[%emt 0:00:03]} 52. Rg7 {[%emt 0:00:09]} Kc8 {[%emt 0:00:04]} 53. Rg8+ {[%emt 0:00:02]} Kb7 {[%emt 0:00:01]} 54. Rg7 {[%emt 0:00:00]} Kc8 {[%emt 0:00:00]} 55. Rg8+ {[%emt 0:00:01]} Kb7 {[%emt 0:00:01]} 56. Rg7 {[%emt 0:00:01]} 1/2-1/2

[Event "CCT Julius Baer-D2 2024"]
[Site "Online"]
[Date "2024.09.30"]
[Round "54"]
[White "Vidit, Santosh Gujrathi"]
[Black "Indjic, Aleksandar"]
[Result "1-0"]
[ECO "B90"]
[WhiteElo "2720"]
[BlackElo "2611"]
[Annotator "RC"]
[PlyCount "167"]
[EventDate "2024.09.25"]
[EventType "swiss"]
[EventCountry "NET"]
[SourceTitle "playchess.com"]
[Source "ChessBase"]
[SourceQuality "1"]
[TimeControl "600+2"]

1. e4 {[%emt 0:00:05]} c5 {[%emt 0:00:04]} 2. Nf3 {[%emt 0:00:02]} d6 {[%emt 0:00:01]} 3. d4 {[%emt 0:00:04]} cxd4 {[%emt 0:00:00]} 4. Nxd4 {[%emt 0:00:00]} Nf6 {[%emt 0:00:01]} 5. Nc3 {[%emt 0:00:02]} a6 {[%emt 0:00:01]} 6. Bd3 {[%emt 0:00:07]} e5 {[%emt 0:00:06]} 7. Nde2 {[%emt 0:00:02]} Be7 {[%emt 0:00:01]} 8. O-O {[%emt 0:00:01]} Be6 {[%emt 0:00:02]} 9. f4 {[%emt 0:00:21]} exf4 {[%emt 0:00:04]} 10. Nxf4 {[%emt 0:00:01]} Nc6 {[%emt 0:00:02]} 11. Kh1 {[%emt 0:00:05]} O-O {[%emt 0:00:01]} 12. Be3 {[%emt 0:00:15]} Ne5 {[%emt 0:00:01]} 13. a4 {[%emt 0:00:05]} Rc8 {[%emt 0:00:02]} 14. Bd4 {[%emt 0:00:05]} Nfd7 {[%emt 0:00:02]} 15. Ncd5 {[%emt 0:00:04]} Bg5 {[%emt 0:00:02]} 16. c3 {[%emt 0:00:23]} Rc6 {[%emt 0:00:17]} 17. a5 {[%emt 0:00:10]} Nc5 {[%emt 0:00:14]} 18. Bc2 {[%emt 0:00:04]} h6 {[%emt 0:01:13]} 19. Qe2 {[%emt 0:01:54]} Rc8 {[%emt 0:01:06]} 20. b4 {[%emt 0:00:03]} Bxf4 {[%emt 0:00:26]} 21. Rxf4 {[%emt 0:00:19]} Ncd7 {[%emt 0:00:02]} 22. Raf1 {[%emt 0:00:12]} Nc6 {[%emt 0:00:13]} 23. Ne3 {[%emt 0:00:56]} Nde5 {[%emt 0:01:11]} 24. Bb6 {[%emt 0:00:14]} Qg5 {[%emt 0:00:11]} 25. Nd5 {[%emt 0:01:23]} Rfe8 {[%emt 0:01:03]} 26. Bb3 {[%emt 0:00:36]} Ne7 {[%emt 0:00:10]} 27. Nxe7+ {[%emt 0:01:45]} Qxe7 {[%emt 0:00:02]} 28. Bxe6 {[%emt 0:00:04]} Qxe6 {[%emt 0:00:00]} 29. Bd4 {[%emt 0:00:04]} f6 {[%emt 0:00:00]} 30. Qh5 {[%emt 0:00:12]} Re7 {[%emt 0:00:04]} 31. h3 {[%emt 0:00:02]} Qf7 {[%emt 0:00:02]} 32. Qd1 {[%emt 0:00:12]} Re6 {[%emt 0:00:05]} 33. Rf5 {[%emt 0:00:19]} Qe7 {[%emt 0:00:02]} 34. Qb3 {[%emt 0:00:04]} Nf7 {[%emt 0:00:01]} 35. Qd5 {[%emt 0:00:10]} Rf8 {[%emt 0:00:20]} 36. b5 {[%emt 0:00:03]} axb5 {[%emt 0:00:02]} 37. Rb1 {[%emt 0:00:06]} Rc8 {[%emt 0:00:03]} 38. Rxb5 {[%emt 0:00:01]} Rc7 {[%emt 0:00:00]} 39. Rf2 {[%emt 0:00:15]} Kh8 {[%emt 0:00:02]} 40. Rfb2 {[%emt 0:00:02]} Nd8 {[%emt 0:00:49]} 41. a6 {[%emt 0:00:08]} bxa6 {[%emt 0:00:02]} 42. Rb8 {[%emt 0:00:01]} Rd7 {[%emt 0:00:01]} 43. Rc8 {[%emt 0:00:01]} Kh7 {[%emt 0:00:54]} 44. Rbb8 {[%emt 0:00:02]} Rxe4 {[%emt 0:00:05]} 45. Qf5+ {[%emt 0:00:09]} g6 {[%emt 0:00:08]} 46. Qxf6 {[%emt 0:00:03]} Rxd4 {[%emt 0:00:19]} 47. Qxd4 {[%emt 0:00:04]} h5 {[%emt 0:00:02]} 48. Kh2 {[%emt 0:00:07]} Qg5 {[%emt 0:00:06]} 49. c4 {[%emt 0:00:02]} Qe7 {[%emt 0:00:03]} 50. c5 {[%emt 0:00:03]} dxc5 {[%emt 0:00:04]} 51. Qf4 {[%emt 0:00:02]} Nf7 {[%emt 0:00:06]} 52. Rf8 {[%emt 0:00:03]} Kg7 {[%emt 0:00:12]} 53. Rg8+ {[%emt 0:00:00]} Kh7 {[%emt 0:00:01]} 54. Rbe8 {[%emt 0:00:02]} Qd6 {[%emt 0:00:06]} 55. Qxd6 {[%emt 0:00:07]} Rxd6 {[%emt 0:00:11]} 56. Ra8 {[%emt 0:00:04]} c4 {[%emt 0:00:11]} 57. Rgc8 {[%emt 0:00:02]} Ne5 {[%emt 0:00:05]} 58. Rc5 {[%emt 0:00:01]} Re6 {[%emt 0:00:03]} 59. Kg3 {[%emt 0:00:02]} Kg7 {[%emt 0:00:03]} 60. Rc7+ {[%emt 0:00:02]} Nf7 {[%emt 0:00:18]} 61. Rxc4 {[%emt 0:00:03]} Nh6 {[%emt 0:00:01]} 62. Rc7+ {[%emt 0:00:01]} Kf6 {[%emt 0:00:03]} 63. Rf8+ {[%emt 0:00:02]} Ke5 {[%emt 0:00:00]} 64. Kh4 {[%emt 0:00:03]} Nf5+ {[%emt 0:00:08]} 65. Kg5 {[%emt 0:00:01]} Nd6 {[%emt 0:00:00]} 66. Rc5+ {[%emt 0:00:03]} Kd4 {[%emt 0:00:01]} 67. Rc2 {[%emt 0:00:01]} Ne4+ {[%emt 0:00:02]} 68. Kh6 {[%emt 0:00:01]} h4 {[%emt 0:00:02]} 69. Rd8+ {[%emt 0:00:04]} Ke3 {[%emt 0:00:00]} 70. Ra2 {[%emt 0:00:02]} g5+ {[%emt 0:00:02]} 71. Kg7 {[%emt 0:00:02]} Kf4 {[%emt 0:00:32]} 72. Rf8+ {[%emt 0:00:01]} Ke5 {[%emt 0:00:01]} 73. Ra5+ {[%emt 0:00:01]} Kd4 {[%emt 0:00:00]} 74. Rf3 {[%emt 0:00:03]} Rb6 {[%emt 0:00:06]} 75. Rfa3 {[%emt 0:00:03]} Rb7+ {[%emt 0:00:02]} 76. Kg6 {[%emt 0:00:01]} Rb6+ {[%emt 0:00:01]} 77. Kh5 {[%emt 0:00:02]} Rb5 {[%emt 0:00:02]} 78. R5a4+ {[%emt 0:00:03]} Kd5 {[%emt 0:00:10]} 79. Rd3+ {[%emt 0:00:00]} Ke5 {[%emt 0:00:06]} 80. Re3 {[%emt 0:00:01]} Kf5 {[%emt 0:00:04]} 81. Raxe4 {[%emt 0:00:01]} Rb8 {[%emt 0:00:02]} 82. Re5+ {[%emt 0:00:01]} Kf6 {[%emt 0:00:00]} 83. Kg4 {[%emt 0:00:01]} Rb4+ {[%emt 0:00:02]} 84. R3e4 {[%emt 0:00:01]} 1-0

[Event "CCT Julius Baer-D2 2024"]
[Site "Online"]
[Date "2024.09.30"]
[Round "54"]
[White "Sargsyan, Shant"]
[Black "Lazavik, Denis"]
[Result "0-1"]
[ECO "D37"]
[WhiteElo "2649"]
[BlackElo "2578"]
[Annotator "RC"]
[PlyCount "162"]
[EventDate "2024.09.25"]
[EventType "swiss"]
[EventCountry "NET"]
[SourceTitle "playchess.com"]
[Source "ChessBase"]
[SourceQuality "1"]
[TimeControl "600+2"]

1. d4 {[%emt 0:00:02]} Nf6 {[%emt 0:00:03]} 2. c4 {[%emt 0:00:01]} e6 {[%emt 0:00:01]} 3. Nf3 {[%emt 0:00:00]} d5 {[%emt 0:00:01]} 4. Nc3 {[%emt 0:00:00]} Be7 {[%emt 0:00:01]} 5. Bf4 {[%emt 0:00:01]} O-O {[%emt 0:00:01]} 6. Rc1 {[%emt 0:00:00]} c5 {[%emt 0:00:06]} 7. dxc5 {[%emt 0:00:02]} dxc4 {[%emt 0:00:01]} 8. e3 {[%emt 0:00:06]} Qxd1+ {[%emt 0:00:08]} 9. Rxd1 {[%emt 0:00:01]} Bxc5 {[%emt 0:00:15]} 10. Bxc4 {[%emt 0:00:01]} Bb4 {[%emt 0:00:29]} 11. O-O {[%emt 0:00:04]} Bxc3 {[%emt 0:00:26]} 12. bxc3 {[%emt 0:00:00]} Bd7 {[%emt 0:00:15]} 13. Ne5 {[%emt 0:00:10]} Rc8 {[%emt 0:00:56]} 14. Bb3 {[%emt 0:00:08]} Be8 {[%emt 0:00:42]} 15. Nc4 {[%emt 0:00:49]} Nbd7 {[%emt 0:00:59]} 16. Nd6 {[%emt 0:00:15]} Rxc3 {[%emt 0:00:16]} 17. Nxe8 {[%emt 0:01:16]} Rxe8 {[%emt 0:00:10]} 18. Ba4 {[%emt 0:00:01]} Rd8 {[%emt 0:00:14]} 19. Bd6 {[%emt 0:00:56]} Nb6 {[%emt 0:00:33]} 20. Bb3 {[%emt 0:00:10]} Rcc8 {[%emt 0:00:06]} 21. Be5 {[%emt 0:00:12]} Ne4 {[%emt 0:00:17]} 22. Rxd8+ {[%emt 0:00:28]} Rxd8 {[%emt 0:00:02]} 23. Bc2 {[%emt 0:00:00]} Nf6 {[%emt 0:00:13]} 24. Bd4 {[%emt 0:00:05]} Nbd5 {[%emt 0:00:23]} 25. Rc1 {[%emt 0:00:09]} a6 {[%emt 0:00:24]} 26. Bb3 {[%emt 0:00:07]} h6 {[%emt 0:00:10]} 27. f3 {[%emt 0:00:01]} Ne7 {[%emt 0:00:13]} 28. Bb6 {[%emt 0:00:44]} Rd6 {[%emt 0:00:11]} 29. Ba5 {[%emt 0:00:07]} Nc6 {[%emt 0:00:10]} 30. Be1 {[%emt 0:00:01]} Rd8 {[%emt 0:00:55]} 31. Kf2 {[%emt 0:00:12]} Kf8 {[%emt 0:00:02]} 32. Ke2 {[%emt 0:00:03]} Ke8 {[%emt 0:00:01]} 33. Bg3 {[%emt 0:00:11]} Rc8 {[%emt 0:00:04]} 34. Kd2 {[%emt 0:00:13]} Rd8+ {[%emt 0:00:09]} 35. Ke1 {[%emt 0:00:01]} Rc8 {[%emt 0:00:06]} 36. e4 {[%emt 0:00:13]} Nd7 {[%emt 0:00:10]} 37. Bf2 {[%emt 0:00:06]} Ne7 {[%emt 0:00:04]} 38. Rd1 {[%emt 0:00:03]} Nc5 {[%emt 0:00:16]} 39. Bc2 {[%emt 0:00:01]} b5 {[%emt 0:00:13]} 40. Rd2 {[%emt 0:00:04]} Nd7 {[%emt 0:00:04]} 41. Bd4 {[%emt 0:00:03]} g6 {[%emt 0:00:16]} 42. g4 {[%emt 0:00:05]} Nc6 {[%emt 0:00:02]} 43. Bg7 {[%emt 0:00:11]} Nce5 {[%emt 0:00:05]} 44. Bd1 {[%emt 0:00:01]} Nc4 {[%emt 0:00:10]} 45. Rc2 {[%emt 0:00:21]} h5 {[%emt 0:00:07]} 46. gxh5 {[%emt 0:00:04]} gxh5 {[%emt 0:00:00]} 47. f4 {[%emt 0:00:01]} Nc5 {[%emt 0:00:02]} 48. Be2 {[%emt 0:00:43]} Nxe4 {[%emt 0:00:06]} 49. Bxh5 {[%emt 0:00:01]} Ke7 {[%emt 0:00:04]} 50. Bd4 {[%emt 0:00:31]} Rd8 {[%emt 0:00:06]} 51. Ba1 {[%emt 0:00:11]} Rd3 {[%emt 0:00:14]} 52. Be2 {[%emt 0:00:30]} Re3 {[%emt 0:00:02]} 53. Bd4 {[%emt 0:00:03]} Rh3 {[%emt 0:00:06]} 54. Bg1 {[%emt 0:00:00]} f5 {[%emt 0:00:13]} 55. Bf1 {[%emt 0:00:01]} Rh4 {[%emt 0:00:04]} 56. Rg2 {[%emt 0:00:31]} Rxf4 {[%emt 0:00:02]} 57. Rg7+ {[%emt 0:00:01]} Kf6 {[%emt 0:00:01]} 58. Ra7 {[%emt 0:00:01]} Ned2 {[%emt 0:00:07]} 59. Be2 {[%emt 0:00:31]} Nf3+ {[%emt 0:00:02]} 60. Bxf3 {[%emt 0:00:00]} Rxf3 {[%emt 0:00:00]} 61. h4 {[%emt 0:00:01]} Rh3 {[%emt 0:00:04]} 62. Bd4+ {[%emt 0:00:02]} e5 {[%emt 0:00:07]} 63. Rxa6+ {[%emt 0:00:01]} Kf7 {[%emt 0:00:01]} 64. Bf2 {[%emt 0:00:03]} f4 {[%emt 0:00:02]} 65. Kf1 {[%emt 0:00:01]} Ne3+ {[%emt 0:00:06]} 66. Ke2 {[%emt 0:00:01]} Ng4 {[%emt 0:00:04]} 67. Bc5 {[%emt 0:00:06]} f3+ {[%emt 0:00:02]} 68. Kd3 {[%emt 0:00:06]} f2+ {[%emt 0:00:01]} 69. Ke2 {[%emt 0:00:00]} Rf3 {[%emt 0:00:04]} 70. Ra7+ {[%emt 0:00:10]} Ke6 {[%emt 0:00:03]} 71. Re7+ {[%emt 0:00:17]} Kd5 {[%emt 0:00:01]} 72. Rxe5+ {[%emt 0:00:01]} Nxe5 {[%emt 0:00:03]} 73. Bxf2 {[%emt 0:00:03]} Rh3 {[%emt 0:00:01]} 74. h5 {[%emt 0:00:01]} Rxh5 {[%emt 0:00:01]} 75. a4 {[%emt 0:00:00]} bxa4 {[%emt 0:00:01]} 76. Bd4 {[%emt 0:00:00]} Kxd4 {[%emt 0:00:01]} 77. Kf2 {[%emt 0:00:00]} a3 {[%emt 0:00:01]} 78. Kg3 {[%emt 0:00:00]} a2 {[%emt 0:00:01]} 79. Kf4 {[%emt 0:00:00]} a1=Q {[%emt 0:00:02]} 80. Kg3 {[%emt 0:00:01]} Qc3+ {[%emt 0:00:00]} 81. Kf4 {[%emt 0:00:00]} Qf3# {[%emt 0:00:01]} 0-1